[Event "Open Nuevo Centro. Jornada 2"]
[Site "Chess.com"]
[Date "2020.06.26"]
[Round "6"]
[White "Saiz Sapena, Veronica"]
[Black "Méndez Giménez , Néstor Emmanuel"]
[Result "1-0"]
[WhiteElo "1551"]
[BlackElo "1117"]
[TimeControl "180+2"]
[EndTime "11:30:46 PDT"]
[Termination "Victoria de Titina1 por jaque mate"]

1. e4 {[%clk 0:03:00.3]} 1... e6 {[%clk 0:03:00.7]} 2. d4 {[%clk 0:03:00.4]}
2... c5 {[%clk 0:03:00.6]} 3. Nf3 {[%clk 0:02:59.3]} 3... Nc6 {[%clk 0:03:01.1]}
4. Bb5 {[%clk 0:02:52.7]} 4... cxd4 {[%clk 0:02:58.7]} 5. Bxc6 {[%clk
0:02:44.8]} 5... bxc6 {[%clk 0:02:58.1]} 6. Nxd4 {[%clk 0:02:44]} 6... Bc5
{[%clk 0:02:53.5]} 7. O-O {[%clk 0:02:42.2]} 7... Ba6 {[%clk 0:02:52.6]} 8. Nc3
{[%clk 0:02:41.2]} 8... Bxf1 {[%clk 0:02:50.9]} 9. Kxf1 {[%clk 0:02:39.4]} 9...
Bxd4 {[%clk 0:02:51.6]} 10. Qxd4 {[%clk 0:02:39.5]} 10... Nf6 {[%clk 0:02:51.5]}
11. Bg5 {[%clk 0:02:37.1]} 11... Qe7 {[%clk 0:02:39.1]} 12. e5 {[%clk
0:02:36.5]} 12... h6 {[%clk 0:02:31.5]} 13. Bh4 {[%clk 0:02:22.7]} 13... g5
{[%clk 0:02:29.6]} 14. exf6 {[%clk 0:02:22.6]} 14... Qf8 {[%clk 0:02:24.9]} 15.
Bg3 {[%clk 0:02:22.7]} 15... O-O-O {[%clk 0:02:23.3]} 16. Qxa7 {[%clk 0:02:19]}
16... d6 {[%clk 0:02:14.7]} 17. Na4 {[%clk 0:02:16.8]} 17... Qe8 {[%clk
0:02:13.7]} 18. Nb6# {[%clk 0:02:16.3]} 1

[Event "Open Nuevo Centro. Jornada 2"]
[Site "Chess.com"]
[Date "2020.06.26"]
[Round "6"]
[White "Donate Moreno, David"]
[Black "Martínez Cuenca, Jose Andrés"]
[Result "1-0"]
[WhiteElo "1519"]
[BlackElo "1083"]
[TimeControl "180+2"]
[EndTime "11:30:58 PDT"]
[Termination "Victoria de sylar48 por jaque mate"]

1. e4 {[%clk 0:03:01.9]} 1... c5 {[%clk 0:02:54.7]} 2. Nf3 {[%clk 0:02:59.5]}
2... g6 {[%clk 0:02:52.8]} 3. d4 {[%clk 0:02:58.7]} 3... cxd4 {[%clk 0:02:52.8]}
4. Nxd4 {[%clk 0:02:58.9]} 4... Nc6 {[%clk 0:02:54.2]} 5. Be3 {[%clk 0:02:57.4]}
5... Bg7 {[%clk 0:02:52.7]} 6. Nc3 {[%clk 0:02:51.8]} 6... d6 {[%clk 0:02:43.7]}
7. f3 {[%clk 0:02:52.3]} 7... Qb6 {[%clk 0:02:38.2]} 8. Qc1 {[%clk 0:02:43]}
8... Bxd4 {[%clk 0:02:34]} 9. Nd5 {[%clk 0:02:39]} 9... Qa5+ {[%clk 0:02:19.5]}
10. b4 {[%clk 0:02:37.5]} 10... Qa4 {[%clk 0:02:04.5]} 11. Bxd4 {[%clk
0:02:33.7]} 11... Nxd4 {[%clk 0:02:01.8]} 12. Nc7+ {[%clk 0:02:34]} 12... Kd8
{[%clk 0:02:00.1]} 13. Nxa8 {[%clk 0:02:34.3]} 13... Nxc2+ {[%clk 0:01:58.9]}
14. Kf2 {[%clk 0:02:26.3]} 14... Nxa1 {[%clk 0:01:53.7]} 15. Qc7+ {[%clk
0:02:25.5]} 15... Ke8 {[%clk 0:01:47.6]} 16. Qxc8# {[%clk 0:02:25]} 1

[Event "Open Nuevo Centro. Jornada 2"]
[Site "Chess.com"]
[Date "2020.06.26"]
[Round "6"]
[White "García Giménez, Santiago"]
[Black "Lloret Ramis, Juan José"]
[Result "0-1"]
[WhiteElo "2010"]
[BlackElo "1988"]
[TimeControl "180+2"]
[EndTime "11:31:14 PDT"]
[Termination "Victoria de Amiplim por abandono"]

1. e4 {[%clk 0:03:01.9]} 1... e6 {[%clk 0:03:00.2]} 2. d4 {[%clk 0:03:02]} 2...
d5 {[%clk 0:03:00.9]} 3. Nd2 {[%clk 0:03:03.7]} 3... c5 {[%clk 0:02:58.6]} 4.
exd5 {[%clk 0:03:02.8]} 4... exd5 {[%clk 0:02:59.4]} 5. Ngf3 {[%clk 0:03:04.3]}
5... Nc6 {[%clk 0:02:59.8]} 6. Bb5 {[%clk 0:03:04.6]} 6... Bd6 {[%clk
0:03:01.1]} 7. dxc5 {[%clk 0:03:04.1]} 7... Bxc5 {[%clk 0:03:02.6]} 8. O-O
{[%clk 0:03:05.7]} 8... Ne7 {[%clk 0:03:03.4]} 9. Nb3 {[%clk 0:03:05.2]} 9...
Bd6 {[%clk 0:03:04.8]} 10. c3 {[%clk 0:03:04.7]} 10... O-O {[%clk 0:03:05.8]}
11. h3 {[%clk 0:03:03.9]} 11... Bd7 {[%clk 0:02:55]} 12. Bd3 {[%clk 0:03:00.7]}
12... Bf5 {[%clk 0:02:43]} 13. Re1 {[%clk 0:02:54.7]} 13... Qd7 {[%clk
0:02:39.5]} 14. Nbd4 {[%clk 0:02:51.9]} 14... Nxd4 {[%clk 0:02:37.7]} 15. Nxd4
{[%clk 0:02:48.4]} 15... Bxd3 {[%clk 0:02:20.7]} 16. Qxd3 {[%clk 0:02:48.2]}
16... Nc6 {[%clk 0:02:04.8]} 17. Nf5 {[%clk 0:02:40.2]} 17... Ne5 {[%clk
0:01:44.9]} 18. Qg3 {[%clk 0:02:39.1]} 18... Qxf5 {[%clk 0:01:39.1]} 0

[Event "Open Nuevo Centro. Jornada 2"]
[Site "Chess.com"]
[Date "2020.06.26"]
[Round "6"]
[White "Sverdlik Roldán, Elías"]
[Black "Vicent Lázaro, Elena"]
[Result "1-0"]
[WhiteElo "766"]
[BlackElo "673"]
[TimeControl "180+2"]
[EndTime "11:31:48 PDT"]
[Termination "Victoria de Elias903 por abandono"]

1. e4 {[%clk 0:03:01.9]} 1... e6 {[%clk 0:03:01.9]} 2. d4 {[%clk 0:03:02.1]}
2... c5 {[%clk 0:03:03.2]} 3. c3 {[%clk 0:03:02.7]} 3... Na6 {[%clk 0:03:04.2]}
4. Nf3 {[%clk 0:03:00]} 4... Bd6 {[%clk 0:03:04.4]} 5. c4 {[%clk 0:02:59.2]}
5... Bb8 {[%clk 0:02:59.2]} 6. Nc3 {[%clk 0:02:58.8]} 6... Nf6 {[%clk
0:02:52.3]} 7. d5 {[%clk 0:02:53.9]} 7... exd5 {[%clk 0:02:39.1]} 8. cxd5 {[%clk
0:02:43]} 8... O-O {[%clk 0:02:37.2]} 9. e5 {[%clk 0:02:40.2]} 9... Ne8 {[%clk
0:02:28.9]} 10. Bxa6 {[%clk 0:02:26.7]} 10... bxa6 {[%clk 0:02:11.1]} 11. O-O
{[%clk 0:02:15.9]} 11... Qc7 {[%clk 0:02:11.1]} 12. d6 {[%clk 0:02:11.5]} 12...
Qc6 {[%clk 0:02:03.3]} 13. Qd5 {[%clk 0:01:54.5]} 13... Qb6 {[%clk 0:01:55.4]}
14. Qxa8 {[%clk 0:01:50.4]} 14... f6 {[%clk 0:01:27]} 1

[Event "Open Nuevo Centro. Jornada 2"]
[Site "Chess.com"]
[Date "2020.06.26"]
[Round "6"]
[White "Elenkov Olmo, Ivan"]
[Black "Rabbani Perez, Ayoub "]
[Result "1-0"]
[WhiteElo "903"]
[BlackElo "220"]
[TimeControl "180+2"]
[EndTime "11:31:55 PDT"]
[Termination "Victoria de IVANELEN por jaque mate"]

1. e4 {[%clk 0:02:56.4]} 1... e5 {[%clk 0:02:49.8]} 2. Nf3 {[%clk 0:02:56.6]}
2... Nf6 {[%clk 0:02:49.7]} 3. Nxe5 {[%clk 0:02:56.8]} 3... Nxe4 {[%clk
0:02:47.8]} 4. Qe2 {[%clk 0:02:57.2]} 4... Qe7 {[%clk 0:02:47.4]} 5. Qxe4 {[%clk
0:02:57.3]} 5... Qf6 {[%clk 0:02:40]} 6. Ng4+ {[%clk 0:02:55.5]} 6... Qe7 {[%clk
0:02:35.2]} 7. Qxe7+ {[%clk 0:02:54.3]} 7... Bxe7 {[%clk 0:02:35.2]} 8. Bc4
{[%clk 0:02:47.8]} 8... d6 {[%clk 0:02:33.6]} 9. O-O {[%clk 0:02:45.6]} 9...
Bxg4 {[%clk 0:02:32.2]} 10. Bd3 {[%clk 0:02:33.6]} 10... Bc8 {[%clk 0:02:29]}
11. Be4 {[%clk 0:02:34]} 11... Rf8 {[%clk 0:02:22.3]} 12. Bxb7 {[%clk
0:02:33.7]} 12... Bxb7 {[%clk 0:02:20.4]} 13. Re1 {[%clk 0:02:31.8]} 13... d5
{[%clk 0:02:12.4]} 14. Nc3 {[%clk 0:02:28.4]} 14... d4 {[%clk 0:02:11.8]} 15.
Nb5 {[%clk 0:02:22.3]} 15... c6 {[%clk 0:02:07.1]} 16. Nc7+ {[%clk 0:02:21]}
16... Kd7 {[%clk 0:02:04.4]} 17. Nxa8 {[%clk 0:02:21.4]} 17... Bxa8 {[%clk
0:02:03.5]} 18. c3 {[%clk 0:02:16]} 18... dxc3 {[%clk 0:02:02.5]} 19. dxc3
{[%clk 0:02:13.1]} 19... Bb7 {[%clk 0:02:01]} 20. Be3 {[%clk 0:02:13.1]} 20...
c5 {[%clk 0:01:59.1]} 21. Rad1+ {[%clk 0:02:11.7]} 21... Ke8 {[%clk 0:01:50.4]}
22. Bxc5 {[%clk 0:02:07.6]} 22... Na6 {[%clk 0:01:46.3]} 23. Rxe7# {[%clk
0:02:06.4]} 1

[Event "Open Nuevo Centro. Jornada 2"]
[Site "Chess.com"]
[Date "2020.06.26"]
[Round "6"]
[White "Beneyto de Ramon, Guillermo"]
[Black "Cinà Asensio, Luca "]
[Result "1-0"]
[WhiteElo "1506"]
[BlackElo "634"]
[TimeControl "180+2"]
[EndTime "11:32:08 PDT"]
[Termination "Victoria de GUILLETE por jaque mate"]

1. c4 {[%clk 0:03:01.7]} 1... e6 {[%clk 0:02:54.7]} 2. Nc3 {[%clk 0:02:58.9]}
2... c5 {[%clk 0:02:54.4]} 3. g3 {[%clk 0:03:00.8]} 3... Nc6 {[%clk 0:02:54.7]}
4. Bg2 {[%clk 0:03:02.1]} 4... Be7 {[%clk 0:02:49.4]} 5. Nf3 {[%clk 0:03:01.7]}
5... Nf6 {[%clk 0:02:48.8]} 6. d3 {[%clk 0:03:02.7]} 6... O-O {[%clk 0:02:48.2]}
7. O-O {[%clk 0:03:03.4]} 7... Nb4 {[%clk 0:02:45.9]} 8. a3 {[%clk 0:03:02.9]}
8... Nc6 {[%clk 0:02:44.1]} 9. Bf4 {[%clk 0:03:01.4]} 9... Nh5 {[%clk
0:02:43.4]} 10. Qd2 {[%clk 0:02:57.6]} 10... Nxf4 {[%clk 0:02:40.7]} 11. Qxf4
{[%clk 0:02:59.5]} 11... Bd6 {[%clk 0:02:39.7]} 12. Qg4 {[%clk 0:02:54.9]} 12...
Bf4 {[%clk 0:02:41.6]} 13. Qxf4 {[%clk 0:02:50]} 13... Ne7 {[%clk 0:02:38.4]}
14. Ne5 {[%clk 0:02:42.7]} 14... Ng6 {[%clk 0:02:31]} 15. Nxg6 {[%clk
0:02:42.9]} 15... fxg6 {[%clk 0:02:32.9]} 16. Qe3 {[%clk 0:02:39.6]} 16... b6
{[%clk 0:02:30.9]} 17. Bxa8 {[%clk 0:02:39.7]} 17... Ba6 {[%clk 0:02:29.8]} 18.
Bg2 {[%clk 0:02:38.3]} 18... Qb8 {[%clk 0:02:27.8]} 19. Ne4 {[%clk 0:02:36.9]}
19... Bb7 {[%clk 0:02:27.9]} 20. d4 {[%clk 0:02:26.5]} 20... cxd4 {[%clk
0:02:27.5]} 21. Qxd4 {[%clk 0:02:28.4]} 21... e5 {[%clk 0:02:21.5]} 22. Qd6
{[%clk 0:02:27.9]} 22... Qd8 {[%clk 0:02:18.5]} 23. Nf6+ {[%clk 0:02:24.4]}
23... gxf6 {[%clk 0:02:17.5]} 24. Bxb7 {[%clk 0:02:25.1]} 24... f5 {[%clk
0:02:12.3]} 25. Rad1 {[%clk 0:02:22.7]} 25... Rf6 {[%clk 0:02:11.6]} 26. Qxd7
{[%clk 0:02:22.3]} 26... Qb8 {[%clk 0:02:07.5]} 27. Qd8+ {[%clk 0:02:16.8]}
27... Qxd8 {[%clk 0:02:05.4]} 28. Rxd8+ {[%clk 0:02:18.7]} 28... Kf7 {[%clk
0:02:04.3]} 29. Rfd1 {[%clk 0:02:14.8]} 29... Ke7 {[%clk 0:02:03.1]} 30. R1d7+
{[%clk 0:02:14.4]} 30... Ke6 {[%clk 0:02:02.3]} 31. Bd5# {[%clk 0:02:15.9]} 1

[Event "Open Nuevo Centro. Jornada 2"]
[Site "Chess.com"]
[Date "2020.06.26"]
[Round "6"]
[White "Garcia, Jhoel"]
[Black "Segarra Martinez, Axel"]
[Result "1-0"]
[WhiteElo "2300"]
[BlackElo "2207"]
[TimeControl "180+2"]
[EndTime "11:32:33 PDT"]
[Termination "Victoria de shoels por jaque mate"]

1. c4 {[%clk 0:03:01.9]} 1... e5 {[%clk 0:02:59.8]} 2. g3 {[%clk 0:03:02.7]}
2... Nf6 {[%clk 0:03:00.5]} 3. Bg2 {[%clk 0:03:04]} 3... d5 {[%clk 0:03:02]} 4.
cxd5 {[%clk 0:03:05.4]} 4... Nxd5 {[%clk 0:03:03.9]} 5. Nc3 {[%clk 0:03:06.7]}
5... Ne7 {[%clk 0:03:05.5]} 6. Nf3 {[%clk 0:03:07.4]} 6... Nbc6 {[%clk 0:03:07]}
7. O-O {[%clk 0:03:07.5]} 7... g6 {[%clk 0:03:08.5]} 8. a3 {[%clk 0:03:08.9]}
8... Bg7 {[%clk 0:03:09.5]} 9. b4 {[%clk 0:03:08.2]} 9... a6 {[%clk 0:03:08.6]}
10. Bb2 {[%clk 0:03:09.2]} 10... O-O {[%clk 0:03:09.1]} 11. d3 {[%clk
0:03:10.1]} 11... h6 {[%clk 0:03:08.1]} 12. Rc1 {[%clk 0:03:02.7]} 12... Be6
{[%clk 0:03:01]} 13. Ne4 {[%clk 0:03:01.9]} 13... b6 {[%clk 0:03:02]} 14. Ned2
{[%clk 0:02:56.2]} 14... Qd7 {[%clk 0:02:57.9]} 15. Qc2 {[%clk 0:02:55.1]} 15...
Rac8 {[%clk 0:02:55.9]} 16. Rfe1 {[%clk 0:02:46.3]} 16... Rfe8 {[%clk
0:02:45.1]} 17. Nc4 {[%clk 0:02:41.1]} 17... Nd4 {[%clk 0:02:44.8]} 18. Nxd4
{[%clk 0:02:39.1]} 18... exd4 {[%clk 0:02:46.3]} 19. Bb7 {[%clk 0:02:24.8]}
19... Rb8 {[%clk 0:02:42.2]} 20. Bxa6 {[%clk 0:02:19.5]} 20... Bd5 {[%clk
0:02:35.6]} 21. e4 {[%clk 0:02:17.5]} 21... dxe3 {[%clk 0:02:36]} 22. Nxe3
{[%clk 0:02:18.9]} 22... Bf3 {[%clk 0:02:35]} 23. Bxg7 {[%clk 0:02:17]} 23...
Kxg7 {[%clk 0:02:36]} 24. Qxc7 {[%clk 0:02:18.5]} 24... Qa4 {[%clk 0:02:11.1]}
25. Bc4 {[%clk 0:02:07.5]} 25... Qxa3 {[%clk 0:02:08.9]} 26. Qf4 {[%clk
0:02:07.1]} 26... Bd5 {[%clk 0:02:02]} 27. Bxd5 {[%clk 0:01:57]} 27... Nxd5
{[%clk 0:02:01.9]} 28. Nxd5 {[%clk 0:01:58.2]} 28... Qxd3 {[%clk 0:01:48.4]} 29.
Qf6+ {[%clk 0:01:56.9]} 29... Kg8 {[%clk 0:01:47.5]} 30. Ne7+ {[%clk 0:01:51.4]}
30... Kf8 {[%clk 0:01:48.6]} 31. Qh8# {[%clk 0:01:49.4]} 1

[Event "Open Nuevo Centro. Jornada 2"]
[Site "Chess.com"]
[Date "2020.06.26"]
[Round "6"]
[White "Torres Biosca, Roberto"]
[Black "Martínez Albelda, Mariela"]
[Result "0-1"]
[WhiteElo "688"]
[BlackElo "1001"]
[TimeControl "180+2"]
[EndTime "11:33:52 PDT"]
[Termination "Victoria de laranita303 por jaque mate"]

1. e4 {[%clk 0:03:01.7]} 1... e5 {[%clk 0:03:00.9]} 2. Bc4 {[%clk 0:03:02.5]}
2... Nc6 {[%clk 0:02:58.3]} 3. Qh5 {[%clk 0:03:00.5]} 3... Qf6 {[%clk 0:02:52]}
4. d3 {[%clk 0:02:56.4]} 4... g6 {[%clk 0:02:49.6]} 5. Qh3 {[%clk 0:02:53.1]}
5... d5 {[%clk 0:02:45.3]} 6. exd5 {[%clk 0:02:53.4]} 6... Bxh3 {[%clk
0:02:45.7]} 7. Nxh3 {[%clk 0:02:49.5]} 7... Nd4 {[%clk 0:02:39.6]} 8. c3 {[%clk
0:02:50.1]} 8... Nc2+ {[%clk 0:02:37.4]} 9. Kd1 {[%clk 0:02:47.1]} 9... Nxa1
{[%clk 0:02:37.2]} 10. Bb5+ {[%clk 0:02:47.2]} 10... c6 {[%clk 0:02:33.4]} 11.
dxc6 {[%clk 0:02:47.4]} 11... bxc6 {[%clk 0:02:34]} 12. Ba6 {[%clk 0:02:45.3]}
12... c5 {[%clk 0:02:30.7]} 13. Bg5 {[%clk 0:02:43.8]} 13... Qxa6 {[%clk
0:02:29.7]} 14. c4 {[%clk 0:02:27.9]} 14... Be7 {[%clk 0:02:23.7]} 15. Be3
{[%clk 0:02:23.2]} 15... Qxa2 {[%clk 0:02:20.3]} 16. Nd2 {[%clk 0:02:19.9]}
16... Qxb2 {[%clk 0:02:18.8]} 17. Ke2 {[%clk 0:02:13.1]} 17... Nc2 {[%clk
0:02:16.3]} 18. Ng1 {[%clk 0:02:08.7]} 18... Nxe3 {[%clk 0:02:16.2]} 19. fxe3
{[%clk 0:02:08.4]} 19... Bg5 {[%clk 0:02:13.4]} 20. Nf3 {[%clk 0:02:08]} 20...
Bd8 {[%clk 0:02:07.2]} 21. Nxe5 {[%clk 0:02:06.2]} 21... Qxe5 {[%clk 0:02:05.6]}
22. e4 {[%clk 0:02:03.6]} 22... Qb2 {[%clk 0:02:04.5]} 23. Rb1 {[%clk
0:02:02.4]} 23... Qc2 {[%clk 0:02:03]} 24. g4 {[%clk 0:01:57.6]} 24... Bg5
{[%clk 0:02:01.8]} 25. Rd1 {[%clk 0:01:56.3]} 25... Nf6 {[%clk 0:01:58.2]} 26.
h4 {[%clk 0:01:54.7]} 26... Bf4 {[%clk 0:01:56.9]} 27. e5 {[%clk 0:01:52]} 27...
Bxe5 {[%clk 0:01:55.8]} 28. g5 {[%clk 0:01:50.4]} 28... Ng4 {[%clk 0:01:55.6]}
29. h5 {[%clk 0:01:33.1]} 29... gxh5 {[%clk 0:01:53.7]} 30. g6 {[%clk
0:01:33.3]} 30... fxg6 {[%clk 0:01:53.5]} 31. d4 {[%clk 0:01:33.1]} 31... Bf4
{[%clk 0:01:52.3]} 32. dxc5 {[%clk 0:01:30.3]} 32... h4 {[%clk 0:01:44.8]} 33.
c6 {[%clk 0:01:29]} 33... h3 {[%clk 0:01:43.9]} 34. c7 {[%clk 0:01:29.5]} 34...
h2 {[%clk 0:01:43.5]} 35. c8=Q+ {[%clk 0:01:28.8]} 35... Rxc8 {[%clk 0:01:43.3]}
36. c5 {[%clk 0:01:28.4]} 36... h1=Q {[%clk 0:01:40.8]} 37. Rxh1 {[%clk
0:01:28]} 37... Qxd2+ {[%clk 0:01:40.8]} 38. Kf1 {[%clk 0:01:27.7]} 38... Qf2#
{[%clk 0:01:39.8]} 0

[Event "Open Nuevo Centro. Jornada 2"]
[Site "Chess.com"]
[Date "2020.06.26"]
[Round "6"]
[White "Tormos Beltran, Maite"]
[Black "Zakharash, Georgii"]
[Result "1-0"]
[WhiteElo "1465"]
[BlackElo "1060"]
[TimeControl "180+2"]
[EndTime "11:33:57 PDT"]
[Termination "Victoria de TORBEL79 por jaque mate"]

1. d4 {[%clk 0:03:01.9]} 1... d5 {[%clk 0:02:59.6]} 2. c4 {[%clk 0:03:02.4]}
2... e6 {[%clk 0:02:55.2]} 3. Nc3 {[%clk 0:03:03]} 3... Nf6 {[%clk 0:02:53.7]}
4. Nf3 {[%clk 0:03:03.7]} 4... Bb4 {[%clk 0:02:50.9]} 5. Qc2 {[%clk 0:03:02.9]}
5... Nc6 {[%clk 0:02:46.8]} 6. g3 {[%clk 0:03:03.6]} 6... O-O {[%clk 0:02:44.3]}
7. Bg2 {[%clk 0:03:03.9]} 7... Bxc3+ {[%clk 0:02:21.4]} 8. Qxc3 {[%clk
0:03:01.9]} 8... Re8 {[%clk 0:02:21.4]} 9. O-O {[%clk 0:03:02.1]} 9... e5 {[%clk
0:02:20.8]} 10. dxe5 {[%clk 0:02:56]} 10... d4 {[%clk 0:02:15.7]} 11. Qd3 {[%clk
0:02:46.4]} 11... Nxe5 {[%clk 0:02:13.2]} 12. Nxe5 {[%clk 0:02:45.5]} 12... Rxe5
{[%clk 0:02:09.3]} 13. Bf4 {[%clk 0:02:45.5]} 13... Re8 {[%clk 0:02:07.1]} 14.
Rad1 {[%clk 0:02:45.6]} 14... c5 {[%clk 0:02:06.4]} 15. e3 {[%clk 0:02:32.7]}
15... Be6 {[%clk 0:01:38.5]} 16. exd4 {[%clk 0:02:23.7]} 16... Qxd4 {[%clk
0:01:29.7]} 17. Qxd4 {[%clk 0:02:20.9]} 17... cxd4 {[%clk 0:01:28.9]} 18. Rxd4
{[%clk 0:02:19.5]} 18... Rad8 {[%clk 0:01:28.8]} 19. Rxd8 {[%clk 0:02:12.8]}
19... Rxd8 {[%clk 0:01:30.7]} 20. Bxb7 {[%clk 0:02:09.5]} 20... Bxc4 {[%clk
0:01:29.5]} 21. Re1 {[%clk 0:02:07]} 21... Bxa2 {[%clk 0:01:26.7]} 22. Be3
{[%clk 0:02:06.5]} 22... h6 {[%clk 0:01:24.6]} 23. Bxa7 {[%clk 0:02:05.2]} 23...
Rd7 {[%clk 0:01:23.4]} 24. Ra1 {[%clk 0:01:53.6]} 24... Rxb7 {[%clk 0:01:12.7]}
25. Rxa2 {[%clk 0:01:53.9]} 25... Re7 {[%clk 0:01:12.1]} 26. Bc5 {[%clk
0:01:53.8]} 26... Rc7 {[%clk 0:01:11.4]} 27. Bd4 {[%clk 0:01:53.5]} 27... Rc6
{[%clk 0:01:09.3]} 28. b4 {[%clk 0:01:48.7]} 28... Nd5 {[%clk 0:01:05.9]} 29.
Bc5 {[%clk 0:01:47.6]} 29... Nb6 {[%clk 0:01:02.3]} 30. Ra6 {[%clk 0:01:45]}
30... Rxc5 {[%clk 0:00:58.7]} 31. bxc5 {[%clk 0:01:43.9]} 31... Nd7 {[%clk
0:00:59.6]} 32. c6 {[%clk 0:01:44.3]} 32... Ne5 {[%clk 0:01:00]} 33. c7 {[%clk
0:01:44.9]} 33... Nc6 {[%clk 0:00:59.7]} 34. c8=Q+ {[%clk 0:01:44.8]} 34... Kh7
{[%clk 0:01:00.1]} 35. Rxc6 {[%clk 0:01:46]} 35... f5 {[%clk 0:00:59.7]} 36.
Qxf5+ {[%clk 0:01:45.9]} 36... Kh8 {[%clk 0:00:58.3]} 37. Rc8# {[%clk
0:01:46.4]} 1

[Event "Open Nuevo Centro. Jornada 2"]
[Site "Chess.com"]
[Date "2020.06.26"]
[Round "6"]
[White "Valero Artagoitia, Sara"]
[Black "Yeste Campos, Manuel"]
[Result "0-1"]
[WhiteElo "512"]
[BlackElo "920"]
[TimeControl "180+2"]
[EndTime "11:33:59 PDT"]
[Termination "Victoria de Manuel_Yeste por jaque mate"]

1. e4 {[%clk 0:03:01.4]} 1... e5 {[%clk 0:02:59.9]} 2. Nf3 {[%clk 0:02:59.9]}
2... Nc6 {[%clk 0:02:59.8]} 3. Nc3 {[%clk 0:02:59.9]} 3... Nf6 {[%clk
0:02:58.8]} 4. Bc4 {[%clk 0:02:59.2]} 4... Bc5 {[%clk 0:02:59.1]} 5. Ng5 {[%clk
0:02:55.7]} 5... O-O {[%clk 0:02:58.6]} 6. O-O {[%clk 0:02:28.8]} 6... d6 {[%clk
0:02:57]} 7. h3 {[%clk 0:02:27.6]} 7... h6 {[%clk 0:02:57.3]} 8. Nf3 {[%clk
0:02:26.9]} 8... Nd4 {[%clk 0:02:53.2]} 9. d3 {[%clk 0:02:03.7]} 9... b6 {[%clk
0:02:51.2]} 10. a4 {[%clk 0:02:00.8]} 10... Bb7 {[%clk 0:02:49.5]} 11. Be3
{[%clk 0:01:34.3]} 11... Nxf3+ {[%clk 0:02:42.2]} 12. Qxf3 {[%clk 0:01:31.9]}
12... Bxe3 {[%clk 0:02:43.6]} 13. Qxe3 {[%clk 0:01:28.5]} 13... d5 {[%clk
0:02:37.5]} 14. Bb5 {[%clk 0:01:11.4]} 14... d4 {[%clk 0:02:35.5]} 15. Qg3
{[%clk 0:00:48.4]} 15... dxc3 {[%clk 0:02:32.3]} 16. bxc3 {[%clk 0:00:46]} 16...
a6 {[%clk 0:02:31.1]} 17. Bc4 {[%clk 0:00:42.7]} 17... b5 {[%clk 0:02:29.3]} 18.
axb5 {[%clk 0:00:38.5]} 18... axb5 {[%clk 0:02:30]} 19. Bxb5 {[%clk 0:00:33.8]}
19... Rxa1 {[%clk 0:02:28.9]} 20. Rxa1 {[%clk 0:00:32.4]} 20... Re8 {[%clk
0:02:22.5]} 21. Bxe8 {[%clk 0:00:29.7]} 21... Qxe8 {[%clk 0:02:23.3]} 22. d4
{[%clk 0:00:29.4]} 22... exd4 {[%clk 0:02:22.5]} 23. cxd4 {[%clk 0:00:28.6]}
23... Nxe4 {[%clk 0:02:16.5]} 24. Qxc7 {[%clk 0:00:25.9]} 24... Bd5 {[%clk
0:01:54.8]} 25. Qd6 {[%clk 0:00:16.6]} 25... Nxd6 {[%clk 0:01:53.6]} 26. Rb1
{[%clk 0:00:16.3]} 26... Qe4 {[%clk 0:01:48.7]} 27. Rb6 {[%clk 0:00:13.4]} 27...
Qxg2# {[%clk 0:01:48.5]} 0

[Event "Open Nuevo Centro. Jornada 2"]
[Site "Chess.com"]
[Date "2020.06.26"]
[Round "6"]
[White "Rojo Everss, Noel"]
[Black "Perrot, Fabien "]
[Result "0-1"]
[WhiteElo "745"]
[BlackElo "1001"]
[TimeControl "180+2"]
[EndTime "11:34:36 PDT"]
[Termination "Victoria de InspiredMinds por jaque mate"]

1. e4 {[%clk 0:03:01.9]} 1... e5 {[%clk 0:03:00]} 2. Bc4 {[%clk 0:02:59.2]} 2...
Nf6 {[%clk 0:02:58]} 3. Nf3 {[%clk 0:02:50.8]} 3... Nc6 {[%clk 0:02:52.7]} 4. d4
{[%clk 0:02:51]} 4... exd4 {[%clk 0:02:38.4]} 5. Ne5 {[%clk 0:02:52.7]} 5...
Nxe5 {[%clk 0:02:20.7]} 6. O-O {[%clk 0:02:36.2]} 6... Nxc4 {[%clk 0:02:12]} 7.
Bg5 {[%clk 0:02:32.2]} 7... Be7 {[%clk 0:01:19.2]} 8. h4 {[%clk 0:02:29.2]} 8...
h6 {[%clk 0:01:16.6]} 9. Nc3 {[%clk 0:02:25.1]} 9... dxc3 {[%clk 0:01:07.4]} 10.
b3 {[%clk 0:02:21.4]} 10... Nxe4 {[%clk 0:00:48.7]} 11. Qd4 {[%clk 0:02:14.9]}
11... hxg5 {[%clk 0:00:45]} 12. Qxe4 {[%clk 0:02:03]} 12... Nd6 {[%clk
0:00:34.8]} 13. Qe3 {[%clk 0:01:40.9]} 13... gxh4 {[%clk 0:00:28.2]} 14. Qxc3
{[%clk 0:01:27.1]} 14... Bf6 {[%clk 0:00:22.4]} 15. Qe3+ {[%clk 0:01:25.8]}
15... Qe7 {[%clk 0:00:17.1]} 16. Qc5 {[%clk 0:01:18.9]} 16... Bxa1 {[%clk
0:00:14.5]} 17. Re1 {[%clk 0:01:16.3]} 17... Qxe1+ {[%clk 0:00:14.7]} 18. Kh2
{[%clk 0:01:15]} 18... Be5+ {[%clk 0:00:07]} 19. Kh3 {[%clk 0:01:10.5]} 19...
Qe4 {[%clk 0:00:04.8]} 20. Qc3 {[%clk 0:01:02.7]} 20... Bxc3 {[%clk 0:00:04.3]}
21. Kh2 {[%clk 0:01:02.6]} 21... Qe2 {[%clk 0:00:04.7]} 22. Kh3 {[%clk
0:01:02.7]} 22... Qxf2 {[%clk 0:00:05.4]} 23. Kg4 {[%clk 0:01:03.4]} 23... Qg3#
{[%clk 0:00:05.5]} 0